Body Name,Body,Service division categorisation,Service area categorisation,Expense Type,Date paid,Transaction Reference,Net,Supplier Name,Redacted/Excluded
South Holland District Council,http://statistics.data.gov.uk/id/local-authority/32UF,Environmental Services,Refuse Collection Service,Agency Staff,07/08/2014,IJ00031706,333.00,247 Personnel Ltd,
South Holland District Council,http://statistics.data.gov.uk/id/local-authority/32UF,Environmental Services,Recycling Service,Agency Staff,07/08/2014,IJ00031706,135.00,247 Personnel Ltd,
South Holland District Council,http://statistics.data.gov.uk/id/local-authority/32UF,Environmental Services,Street Cleaning Service,Agency Staff,07/08/2014,IJ00031706,198.00,247 Personnel Ltd,
South Holland District Council,http://statistics.data.gov.uk/id/local-authority/32UF,Asset and Property,Council Offices Priory Road,Agency Staff,07/08/2014,IJ00031666,938.12,5 Star Facility Management,
South Holland District Council,http://statistics.data.gov.uk/id/local-authority/32UF,Housing Landlord Manager,Responsive Repairs,Materials and Consumables,07/08/2014,IJ00031638,3630.00,Alvey Fireplaces Ltd,
South Holland District Council,http://statistics.data.gov.uk/id/local-authority/32UF,Community Development,South Holland Centre and TIC,Water and Sewerage Charges,07/08/2014,IJ00031613,3114.29,Anglian Water,
South Holland District Council,http://statistics.data.gov.uk/id/local-authority/32UF,Environmental Services,Refuse Collection Service,Agency Staff,07/08/2014,IJ00031541,233.44,Blue Arrow Ltd,
South Holland District Council,http://statistics.data.gov.uk/id/local-authority/32UF,Environmental Services,Recycling Service,Agency Staff,07/08/2014,IJ00031541,969.34,Blue Arrow Ltd,
South Holland District Council,http://statistics.data.gov.uk/id/local-authority/32UF,Environmental Services,Grounds Maintenance,Agency Staff,07/08/2014,IJ00031541,674.98,Blue Arrow Ltd,
South Holland District Council,http://statistics.data.gov.uk/id/local-authority/32UF,Environmental Services,Street Cleaning Service,Agency Staff,07/08/2014,IJ00031541,517.65,Blue Arrow Ltd,
South Holland District Council,http://statistics.data.gov.uk/id/local-authority/32UF,Environmental Services,Refuse Collection Service,Agency Staff,07/08/2014,IJ00031618,456.75,Blue Arrow Ltd,
South Holland District Council,http://statistics.data.gov.uk/id/local-authority/32UF,Environmental Services,Recycling Service,Agency Staff,07/08/2014,IJ00031618,827.23,Blue Arrow Ltd,
South Holland District Council,http://statistics.data.gov.uk/id/local-authority/32UF,Environmental Services,Grounds Maintenance,Agency Staff,07/08/2014,IJ00031618,1426.08,Blue Arrow Ltd,
South Holland District Council,http://statistics.data.gov.uk/id/local-authority/32UF,Environmental Services,Waste Supplementary Services,Agency Staff,07/08/2014,IJ00031618,96.74,Blue Arrow Ltd,
South Holland District Council,http://statistics.data.gov.uk/id/local-authority/32UF,Environmental Services,Recycling Service,Materials and Consumables,07/08/2014,IJ00031560,503.21,Bpi Recycled Products,
South Holland District Council,http://statistics.data.gov.uk/id/local-authority/32UF,Environmental Services,Recycling Service,Materials and Consumables,07/08/2014,IJ00031561,1275.58,Bpi Recycled Products,
South Holland District Council,http://statistics.data.gov.uk/id/local-authority/32UF,Environmental Services,Recycling Service,Materials and Consumables,07/08/2014,IJ00031626,5792.79,Bpi Recycled Products,
South Holland District Council,http://statistics.data.gov.uk/id/local-authority/32UF,Environmental Services,Refuse Collection Service,Materials and Consumables,07/08/2014,IJ00031626,5054.05,Bpi Recycled Products,
South Holland District Council,http://statistics.data.gov.uk/id/local-authority/32UF,HR,"HR, Training and Development",Staff Training Expenses,07/08/2014,IJ00031616,325.00,Breckland Council,
South Holland District Council,http://statistics.data.gov.uk/id/local-authority/32UF,Democratic Services,European Elections,Course Fees,07/08/2014,IJ00031616,400.00,Breckland Council,
South Holland District Council,http://statistics.data.gov.uk/id/local-authority/32UF,Building Control,Building Control Other Services,Buildings Maintenance - Programmed,07/08/2014,IJ00031583,845.00,Brooks (Spalding) Ltd,
South Holland District Council,http://statistics.data.gov.uk/id/local-authority/32UF,Housing Landlord Manager,Property Maintenance - Support,Professional & Contractors Fees,07/08/2014,IJ00031657,700.00,Cambridge Safety,
South Holland District Council,http://statistics.data.gov.uk/id/local-authority/32UF,Housing Landlord Manager,Housing Sewerage Works,Sewerage Treatment Works,07/08/2014,IJ00031709,20010.18,C.G. Godfrey Ltd,
South Holland District Council,http://statistics.data.gov.uk/id/local-authority/32UF,Housing Landlord Manager,Responsive Repairs,Fuel & Oil,07/08/2014,IJ00031699,188.81,C H Jones Ltd,
South Holland District Council,http://statistics.data.gov.uk/id/local-authority/32UF,Environmental Services,Grounds Maintenance,Fuel & Oil,07/08/2014,IJ00031699,4.65,C H Jones Ltd,
South Holland District Council,http://statistics.data.gov.uk/id/local-authority/32UF,Environmental Services,Grounds Maintenance,Fuel & Oil,07/08/2014,IJ00031699,270.82,C H Jones Ltd,
South Holland District Council,http://statistics.data.gov.uk/id/local-authority/32UF,Environmental Services,Recycling Service,Fuel & Oil,07/08/2014,IJ00031699,1820.23,C H Jones Ltd,
South Holland District Council,http://statistics.data.gov.uk/id/local-authority/32UF,Environmental Services,Street Cleaning Service,Fuel & Oil,07/08/2014,IJ00031699,534.21,C H Jones Ltd,
South Holland District Council,http://statistics.data.gov.uk/id/local-authority/32UF,Environmental Services,Refuse Collection Service,Fuel & Oil,07/08/2014,IJ00031699,2800.55,C H Jones Ltd,
South Holland District Council,http://statistics.data.gov.uk/id/local-authority/32UF,Housing Landlord Manager,Void Repairs,Fuel & Oil,07/08/2014,IJ00031699,192.32,C H Jones Ltd,
South Holland District Council,http://statistics.data.gov.uk/id/local-authority/32UF,Housing Landlord Manager,Planned Schemes - Internal,Fuel & Oil,07/08/2014,IJ00031699,128.89,C H Jones Ltd,
South Holland District Council,http://statistics.data.gov.uk/id/local-authority/32UF,Environmental Services,Markets,Fuel & Oil,07/08/2014,IJ00031699,21.94,C H Jones Ltd,
South Holland District Council,http://statistics.data.gov.uk/id/local-authority/32UF,Environmental Services,Car Parking,Fuel & Oil,07/08/2014,IJ00031699,4.65,C H Jones Ltd,
South Holland District Council,http://statistics.data.gov.uk/id/local-authority/32UF,Environmental Health,Control of Dogs,Fuel & Oil,07/08/2014,IJ00031699,45.57,C H Jones Ltd,
South Holland District Council,http://statistics.data.gov.uk/id/local-authority/32UF,Environmental Services,Recycling Service,Fuel & Oil,07/08/2014,IJ00031699,59.65,C H Jones Ltd,
South Holland District Council,http://statistics.data.gov.uk/id/local-authority/32UF,Finance,Holding and Recharge Account,Compass Point Business Services,07/08/2014,IJ00031601,248630.66,Compass Point Business Srvcs (East Coast) Ltd,
South Holland District Council,http://statistics.data.gov.uk/id/local-authority/32UF,Democratic Services,Democratic Representation and Management,Other Miscellaneous Expenses,07/08/2014,IJ00031527,595.00,Flinders Founders,
South Holland District Council,http://statistics.data.gov.uk/id/local-authority/32UF,Environmental Services,Parks and Open Spaces General Sites,Grounds Maintenance Contract (External),07/08/2014,IJ00031652,1730.00,Greenscape Tree Safe Ltd,
South Holland District Council,http://statistics.data.gov.uk/id/local-authority/32UF,Environmental Services,Parks and Open Spaces General Sites,Grounds Maintenance Contract (External),07/08/2014,IJ00031707,870.00,Greenscape Tree Safe Ltd,
South Holland District Council,http://statistics.data.gov.uk/id/local-authority/32UF,Environmental Services,Refuse Collection Service,Agency Staff,07/08/2014,IJ00031578,284.78,Integrity Plus Ltd,
South Holland District Council,http://statistics.data.gov.uk/id/local-authority/32UF,Environmental Services,Recycling Service,Agency Staff,07/08/2014,IJ00031578,363.34,Integrity Plus Ltd,
South Holland District Council,http://statistics.data.gov.uk/id/local-authority/32UF,Housing Landlord Manager,Void Repairs,Materials and Consumables,07/08/2014,IJ00031673,2507.50,Jackson Buildbase,
South Holland District Council,http://statistics.data.gov.uk/id/local-authority/32UF,Housing Landlord Manager,Responsive Repairs,Materials and Consumables,07/08/2014,IJ00031673,4274.41,Jackson Buildbase,
South Holland District Council,http://statistics.data.gov.uk/id/local-authority/32UF,Housing Landlord Manager,Planned Schemes - Internal,Materials and Consumables,07/08/2014,IJ00031673,616.73,Jackson Buildbase,
South Holland District Council,http://statistics.data.gov.uk/id/local-authority/32UF,Democratic Services,Democratic Representation and Management,Other Miscellaneous Expenses,07/08/2014,IJ00031708,697.60,Jackson Buildbase,
South Holland District Council,http://statistics.data.gov.uk/id/local-authority/32UF,Housing Landlord Manager,Responsive Repairs,Buildings Maintenance - Responsive,07/08/2014,IJ00031620,996.70,L Fragale,
South Holland District Council,http://statistics.data.gov.uk/id/local-authority/32UF,Housing Landlord Manager,Responsive Repairs,Commercial Vehicle Lease,07/08/2014,IJ00031663,520.00,Northgate Vehicle Hire (East Midlands) Ltd,
South Holland District Council,http://statistics.data.gov.uk/id/local-authority/32UF,Planning,Land Charges,Professional & Contractors Fees,07/08/2014,IJ00031585,2716.00,Ocella Ltd,
South Holland District Council,http://statistics.data.gov.uk/id/local-authority/32UF,ICT and Customer Services,Systems Support,Computer Software Licence Costs,07/08/2014,IJ00031697,10958.50,Ocella Ltd,
South Holland District Council,http://statistics.data.gov.uk/id/local-authority/32UF,Planning,Development Management,Professional & Contractors Fees,07/08/2014,IJ00031719,2500.00,Ocella Ltd,
South Holland District Council,http://statistics.data.gov.uk/id/local-authority/32UF,Community Development,Halley Stewart,Subscriptions to Organisations and Other Bodies,07/08/2014,IJ00031653,87.91,Phonographic Performance Ltd,
South Holland District Council,http://statistics.data.gov.uk/id/local-authority/32UF,Community Development,South Holland Centre and TIC,License Fees,07/08/2014,IJ00031653,497.30,Phonographic Performance Ltd,
South Holland District Council,http://statistics.data.gov.uk/id/local-authority/32UF,Community Development,South Holland Centre and TIC,Performers and Entertainers Fees,07/08/2014,IJ00031617,1240.73,Picturehouse Entertainment Limited,
South Holland District Council,http://statistics.data.gov.uk/id/local-authority/32UF,Environmental Services,Grounds Maintenance,Materials and Consumables,07/08/2014,IJ00031682,612.00,Rigby Taylor Limited,
South Holland District Council,http://statistics.data.gov.uk/id/local-authority/32UF,Community Development,South Holland Centre and TIC,Public Courses and Workshops,07/08/2014,IJ00031608,900.00,Soundlincs,
South Holland District Council,http://statistics.data.gov.uk/id/local-authority/32UF,Housing Landlord Manager,Planned Schemes - External,Maintenance of Footpaths and Roadways,07/08/2014,IJ00031676,800.00,South Holland Maintenance Ltd,
South Holland District Council,http://statistics.data.gov.uk/id/local-authority/32UF,Democratic Services,Democratic Representation and Management,Other Miscellaneous Expenses,07/08/2014,IJ00031602,900.00,Spalding Hockey Club,
South Holland District Council,http://statistics.data.gov.uk/id/local-authority/32UF,Democratic Services,Democratic Representation and Management,Other Miscellaneous Expenses,07/08/2014,IJ00031604,600.00,Spalding Hockey Club,
South Holland District Council,http://statistics.data.gov.uk/id/local-authority/32UF,Community Development,South Holland Centre and TIC,Payments to Bodies in Respect of Income Collected,07/08/2014,IJ00031603,507.00,Spalding Water Taxi Co. Ltd,
South Holland District Council,http://statistics.data.gov.uk/id/local-authority/32UF,Housing,Private Sector Housing,Grants and Contributions to Outside Bodies- No Service Recei,07/08/2014,IJ00031667,1925.00,Stuart Taplin,
South Holland District Council,http://statistics.data.gov.uk/id/local-authority/32UF,Environmental Services,Refuse Collection Service,Agency Staff,07/08/2014,IJ00031577,121.52,The Best Connection Group Ltd,
South Holland District Council,http://statistics.data.gov.uk/id/local-authority/32UF,Environmental Services,Recycling Service,Agency Staff,07/08/2014,IJ00031577,883.56,The Best Connection Group Ltd,
South Holland District Council,http://statistics.data.gov.uk/id/local-authority/32UF,Environmental Services,Street Cleaning Service,Agency Staff,07/08/2014,IJ00031577,130.20,The Best Connection Group Ltd,
South Holland District Council,http://statistics.data.gov.uk/id/local-authority/32UF,Environmental Services,Waste Supplementary Services,Agency Staff,07/08/2014,IJ00031577,76.39,The Best Connection Group Ltd,
South Holland District Council,http://statistics.data.gov.uk/id/local-authority/32UF,Environmental Services,Car Parking,Buildings Maintenance - Responsive,07/08/2014,IJ00031567,1848.18,Tyrrell Contractors Ltd,
South Holland District Council,http://statistics.data.gov.uk/id/local-authority/32UF,Environmental Services,Bus Station,Buildings Maintenance - Responsive,07/08/2014,IJ00031568,959.48,Tyrrell Contractors Ltd,
South Holland District Council,http://statistics.data.gov.uk/id/local-authority/32UF,Housing Landlord Manager,Community Facilities,Buildings Maintenance - Responsive,07/08/2014,IJ00031627,751.00,Vere Bros (Contractors) Ltd,
South Holland District Council,http://statistics.data.gov.uk/id/local-authority/32UF,Environmental Services,Bus Station,Insurance,07/08/2014,IJ00031701,908.00,Zurich Municipal,
South Holland District Council,http://statistics.data.gov.uk/id/local-authority/32UF,Community Development,Ayscoughfee Museum,Other Miscellaneous Expenses,07/08/2014,IJ00031661,1297.18,Four and Twenty Blackbirds,
South Holland District Council,http://statistics.data.gov.uk/id/local-authority/32UF,Collection Fund,Collection Fund,Precept- Lincolnshire County Council,07/08/2014,IJ00031716,2750115.00,Lincolnshire County Council,
South Holland District Council,http://statistics.data.gov.uk/id/local-authority/32UF,Collection Fund,Collection Fund,Share of NDR Income - Lincolnshire,07/08/2014,IJ00031716,249590.00,Lincolnshire County Council,
South Holland District Council,http://statistics.data.gov.uk/id/local-authority/32UF,Collection Fund,Collection Fund,Precept - Lincolnshire Police,07/08/2014,IJ00031717,500188.39,LOCAL POLICE AUTHORITY FUND ACCOUNT,
South Holland District Council,http://statistics.data.gov.uk/id/local-authority/32UF,Asset and Property,Footway Lighting,Furniture and Equipment,07/08/2014,IJ00031569,827.00,E.on Sustainable Energy,
South Holland District Council,http://statistics.data.gov.uk/id/local-authority/32UF,ICT and Customer Services,Network/Infrastructure,Professional & Contractors Fees,07/08/2014,IJ00031589,1875.00,INFRASYS LTD,
South Holland District Council,http://statistics.data.gov.uk/id/local-authority/32UF,Capital,HRA Capital,Works to Buildings (main Contractor),07/08/2014,IJ00031542,1720.00,MPL HOME IMPROVEMENTS SERVICES LINCS LTD,
South Holland District Council,http://statistics.data.gov.uk/id/local-authority/32UF,Housing Landlord Manager,Responsive Repairs,Furniture and Equipment,07/08/2014,IJ00031656,1200.83,Hilti GB Ltd,
South Holland District Council,http://statistics.data.gov.uk/id/local-authority/32UF,Housing Landlord Manager,Void Repairs,Furniture and Equipment,07/08/2014,IJ00031656,722.57,Hilti GB Ltd,
South Holland District Council,http://statistics.data.gov.uk/id/local-authority/32UF,Housing,Local Housing Company,Other Miscellaneous Expenses,07/08/2014,IJ00031540,10854.16,South Holland Homes,
South Holland District Council,http://statistics.data.gov.uk/id/local-authority/32UF,Community Development,South Holland Centre and TIC,Payments to Bodies in Respect of Income Collected,07/08/2014,IJ00031619,927.50,RSPB South Lincs Local Group,
South Holland District Council,http://statistics.data.gov.uk/id/local-authority/32UF,Community Development,South Holland Centre and TIC,Commission,07/08/2014,IJ00031619,-77.29,RSPB South Lincs Local Group,
South Holland District Council,http://statistics.data.gov.uk/id/local-authority/32UF,Environmental Services,Recycling Service,Other Communication Costs,07/08/2014,IJ00031564,6500.00,MEL Research Limited,
South Holland District Council,http://statistics.data.gov.uk/id/local-authority/32UF,Economic Development,Grants4Growth,Grants and Contributions to Outside Bodies- No Service Recei,07/08/2014,IJ00031646,1465.00,RAB Precision Engineering Ltd,
South Holland District Council,http://statistics.data.gov.uk/id/local-authority/32UF,Planning,Development Management,Professional & Contractors Fees,07/08/2014,IJ00031565,900.00,MatchTech Group Plc,
South Holland District Council,http://statistics.data.gov.uk/id/local-authority/32UF,Planning,Development Management,Professional & Contractors Fees,07/08/2014,IJ00031582,900.00,MatchTech Group Plc,
South Holland District Council,http://statistics.data.gov.uk/id/local-authority/32UF,Economic Development,Grants4Growth,Grants and Contributions to Outside Bodies- No Service Recei,07/08/2014,IJ00031644,3000.00,Simon Barker Services Ltd,
South Holland District Council,http://statistics.data.gov.uk/id/local-authority/32UF,HR,Employee Expenses and Benefits,Other Employee Expenses,07/08/2014,IJ00031597,686.00,Global Corporate Challenge,
South Holland District Council,http://statistics.data.gov.uk/id/local-authority/32UF,HR,Employee Expenses and Benefits,Other Employee Expenses,07/08/2014,IJ00031600,2401.00,Global Corporate Challenge,
South Holland District Council,http://statistics.data.gov.uk/id/local-authority/32UF,Democratic Services,Democratic Representation and Management,Subscriptions to Organisations and Other Bodies,07/08/2014,IJ00031596,4995.00,East Midlands Councils,
South Holland District Council,http://statistics.data.gov.uk/id/local-authority/32UF,Balance Sheet,Balance Sheet,Current Assets Short Term Investments,07/08/2014,IJ00031683,3000888.85,King and Shaxon,
South Holland District Council,http://statistics.data.gov.uk/id/local-authority/32UF,Housing Landlord Manager,Responsive Repairs,Buildings Maintenance - Responsive,13/08/2014,IJ00031877,53073.60,M & R Glass & Glazing Ltd,
South Holland District Council,http://statistics.data.gov.uk/id/local-authority/32UF,Environmental Services,Refuse Collection Service,Agency Staff,14/08/2014,IJ00031883,405.00,247 Personnel Ltd,
South Holland District Council,http://statistics.data.gov.uk/id/local-authority/32UF,Environmental Services,Recycling Service,Agency Staff,14/08/2014,IJ00031883,400.50,247 Personnel Ltd,
South Holland District Council,http://statistics.data.gov.uk/id/local-authority/32UF,Environmental Services,Street Cleaning Service,Agency Staff,14/08/2014,IJ00031883,135.00,247 Personnel Ltd,
South Holland District Council,http://statistics.data.gov.uk/id/local-authority/32UF,Capital,HRA Capital,Works to Buildings (main Contractor),14/08/2014,IJ00031942,6476.63,A Coupland (Surfacing) Ltd,
South Holland District Council,http://statistics.data.gov.uk/id/local-authority/32UF,Community Development,Ayscoughfee Museum,Other Miscellaneous Expenses,14/08/2014,IJ00031742,576.25,Act II,
South Holland District Council,http://statistics.data.gov.uk/id/local-authority/32UF,Asset and Property,Council Offices Priory Road,Water and Sewerage Charges,14/08/2014,IJ00031723,3375.73,Anglian Water,
South Holland District Council,http://statistics.data.gov.uk/id/local-authority/32UF,Housing Landlord Manager,Intensive Landlord,Water and Sewerage Charges,14/08/2014,IJ00031835,719.65,Anglian Water,
South Holland District Council,http://statistics.data.gov.uk/id/local-authority/32UF,Housing Landlord Manager,Property Maintenance - Support,Computer Software Licence Costs,14/08/2014,IJ00031836,2096.00,Automico Limited,
South Holland District Council,http://statistics.data.gov.uk/id/local-authority/32UF,Housing Landlord Manager,Housing Sewerage Works,Cesspool Empying,14/08/2014,IJ00031776,1805.00,Bates Environmental Ltd,
South Holland District Council,http://statistics.data.gov.uk/id/local-authority/32UF,Housing Landlord Manager,Housing Sewerage Works,Drain Repairs,14/08/2014,IJ00031776,3020.00,Bates Environmental Ltd,
South Holland District Council,http://statistics.data.gov.uk/id/local-authority/32UF,Housing Landlord Manager,Void Repairs,Materials and Consumables,14/08/2014,IJ00031871,6.50,B Ayres,
South Holland District Council,http://statistics.data.gov.uk/id/local-authority/32UF,Housing Landlord Manager,Responsive Repairs,Materials and Consumables,14/08/2014,IJ00031871,492.85,B Ayres,
South Holland District Council,http://statistics.data.gov.uk/id/local-authority/32UF,Housing Landlord Manager,Planned Schemes - Internal,Materials and Consumables,14/08/2014,IJ00031871,77.25,B Ayres,
South Holland District Council,http://statistics.data.gov.uk/id/local-authority/32UF,Environmental Services,Refuse Collection Service,Agency Staff,14/08/2014,IJ00031741,436.45,Blue Arrow Ltd,
South Holland District Council,http://statistics.data.gov.uk/id/local-authority/32UF,Environmental Services,Recycling Service,Agency Staff,14/08/2014,IJ00031741,908.42,Blue Arrow Ltd,
South Holland District Council,http://statistics.data.gov.uk/id/local-authority/32UF,Environmental Services,Grounds Maintenance,Agency Staff,14/08/2014,IJ00031741,1426.09,Blue Arrow Ltd,
South Holland District Council,http://statistics.data.gov.uk/id/local-authority/32UF,Environmental Services,Street Cleaning Service,Agency Staff,14/08/2014,IJ00031741,299.43,Blue Arrow Ltd,
South Holland District Council,http://statistics.data.gov.uk/id/local-authority/32UF,Chief Executive,Breckland Managers,Shared Management,14/08/2014,IJ00031784,54090.26,Breckland Council,
South Holland District Council,http://statistics.data.gov.uk/id/local-authority/32UF,Democratic Services,European Elections,Course Fees,14/08/2014,IJ00031786,40674.40,Breckland Council,
South Holland District Council,http://statistics.data.gov.uk/id/local-authority/32UF,Economic Development,Grants4Growth,Professional & Contractors Fees,14/08/2014,IJ00031807,3442.64,Breckland Council,
South Holland District Council,http://statistics.data.gov.uk/id/local-authority/32UF,Housing Landlord Manager,Planned Schemes - External,Damp Proofing,14/08/2014,IJ00031724,2440.00,British Waterproofing,
South Holland District Council,http://statistics.data.gov.uk/id/local-authority/32UF,Housing Landlord Manager,Planned Schemes - External,Damp Proofing,14/08/2014,IJ00031763,3120.00,British Waterproofing,
South Holland District Council,http://statistics.data.gov.uk/id/local-authority/32UF,Building Control,Building Control Fee Earning Account,License Fees,14/08/2014,IJ00031725,1835.00,Bsi Membership,
South Holland District Council,http://statistics.data.gov.uk/id/local-authority/32UF,Housing Landlord Manager,Responsive Repairs,Fuel & Oil,14/08/2014,IJ00031897,809.97,C H Jones Ltd,
South Holland District Council,http://statistics.data.gov.uk/id/local-authority/32UF,Environmental Services,Grounds Maintenance,Fuel & Oil,14/08/2014,IJ00031897,3.73,C H Jones Ltd,
South Holland District Council,http://statistics.data.gov.uk/id/local-authority/32UF,Environmental Services,Grounds Maintenance,Fuel & Oil,14/08/2014,IJ00031897,211.30,C H Jones Ltd,
South Holland District Council,http://statistics.data.gov.uk/id/local-authority/32UF,Environmental Services,Grounds Maintenance,Fuel & Oil,14/08/2014,IJ00031897,33.82,C H Jones Ltd,
South Holland District Council,http://statistics.data.gov.uk/id/local-authority/32UF,Environmental Services,Recycling Service,Fuel & Oil,14/08/2014,IJ00031897,1903.27,C H Jones Ltd,
South Holland District Council,http://statistics.data.gov.uk/id/local-authority/32UF,Environmental Services,Street Cleaning Service,Fuel & Oil,14/08/2014,IJ00031897,488.84,C H Jones Ltd,
South Holland District Council,http://statistics.data.gov.uk/id/local-authority/32UF,Environmental Services,Refuse Collection Service,Fuel & Oil,14/08/2014,IJ00031897,2824.09,C H Jones Ltd,
South Holland District Council,http://statistics.data.gov.uk/id/local-authority/32UF,Housing Landlord Manager,Void Repairs,Fuel & Oil,14/08/2014,IJ00031897,146.46,C H Jones Ltd,
South Holland District Council,http://statistics.data.gov.uk/id/local-authority/32UF,Housing Landlord Manager,Planned Schemes - Internal,Fuel & Oil,14/08/2014,IJ00031897,124.18,C H Jones Ltd,
South Holland District Council,http://statistics.data.gov.uk/id/local-authority/32UF,Environmental Services,Markets,Fuel & Oil,14/08/2014,IJ00031897,24.07,C H Jones Ltd,
South Holland District Council,http://statistics.data.gov.uk/id/local-authority/32UF,Environmental Services,Car Parking,Fuel & Oil,14/08/2014,IJ00031897,3.73,C H Jones Ltd,
South Holland District Council,http://statistics.data.gov.uk/id/local-authority/32UF,Environmental Services,Recycling Service,Fuel & Oil,14/08/2014,IJ00031897,60.13,C H Jones Ltd,
South Holland District Council,http://statistics.data.gov.uk/id/local-authority/32UF,Environmental Health,Food Safety,Professional & Contractors Fees,14/08/2014,IJ00031734,2000.00,Civica Limited,
South Holland District Council,http://statistics.data.gov.uk/id/local-authority/32UF,Community Development,Arts and Culture Development,External Printing and Design Costs,14/08/2014,IJ00031881,1476.00,Classic Printers,
South Holland District Council,http://statistics.data.gov.uk/id/local-authority/32UF,Community Development,Sports Development and Community Recreation,Other Miscellaneous Expenses,14/08/2014,IJ00031881,3000.00,Classic Printers,
South Holland District Council,http://statistics.data.gov.uk/id/local-authority/32UF,Community Development,Cultural Events,External Printing and Design Costs,14/08/2014,IJ00031881,1700.00,Classic Printers,
South Holland District Council,http://statistics.data.gov.uk/id/local-authority/32UF,Environmental Services,Refuse Collection Service,Maintenance,14/08/2014,IJ00031889,3500.00,C P Davidson & Sons Ltd,
South Holland District Council,http://statistics.data.gov.uk/id/local-authority/32UF,Environmental Services,Grounds Maintenance,Maintenance,14/08/2014,IJ00031872,569.96,C P Davidson & Sons Ltd,
South Holland District Council,http://statistics.data.gov.uk/id/local-authority/32UF,Environmental Services,Street Cleaning Service,Maintenance,14/08/2014,IJ00031872,4786.59,C P Davidson & Sons Ltd,
South Holland District Council,http://statistics.data.gov.uk/id/local-authority/32UF,Environmental Services,Refuse Collection Service,Maintenance,14/08/2014,IJ00031872,3220.62,C P Davidson & Sons Ltd,
South Holland District Council,http://statistics.data.gov.uk/id/local-authority/32UF,Environmental Services,Recycling Service,Maintenance,14/08/2014,IJ00031872,736.15,C P Davidson & Sons Ltd,
South Holland District Council,http://statistics.data.gov.uk/id/local-authority/32UF,Environmental Services,Grounds Maintenance,Commercial Vehicle Lease,14/08/2014,IJ00031845,4459.47,C P Davidson & Sons Ltd,
South Holland District Council,http://statistics.data.gov.uk/id/local-authority/32UF,Capital,HRA Capital,Works to Buildings (main Contractor),14/08/2014,IJ00031856,49935.91,D Brown (Building Contractors) Ltd,
South Holland District Council,http://statistics.data.gov.uk/id/local-authority/32UF,ICT and Customer Services,Network/Infrastructure,Computer Hardware Maintenance,14/08/2014,IJ00031780,4793.00,Dell Computer Corporation Ltd,
South Holland District Council,http://statistics.data.gov.uk/id/local-authority/32UF,Economic Development,Economic Development,Professional & Contractors Fees,14/08/2014,IJ00031803,680.00,Dfb Associates Limited,
South Holland District Council,http://statistics.data.gov.uk/id/local-authority/32UF,Housing Landlord Manager,Void Repairs,Materials and Consumables,14/08/2014,IJ00031878,400.00,Envirovent Ltd,
South Holland District Council,http://statistics.data.gov.uk/id/local-authority/32UF,Housing Landlord Manager,Responsive Repairs,Materials and Consumables,14/08/2014,IJ00031878,400.00,Envirovent Ltd,
South Holland District Council,http://statistics.data.gov.uk/id/local-authority/32UF,Capital,HRA Capital,Works to Buildings (main Contractor),14/08/2014,IJ00031839,2720.00,Focus Consultants 2010 LLP,
South Holland District Council,http://statistics.data.gov.uk/id/local-authority/32UF,Community Development,Swimming Pool,Agency Staff,14/08/2014,IJ00031953,525.00,Gadarch Design Services Ltd,
South Holland District Council,http://statistics.data.gov.uk/id/local-authority/32UF,Asset and Property,Miscellaneous Properties,Professional & Contractors Fees,14/08/2014,IJ00031955,690.00,Gadarch Design Services Ltd,
South Holland District Council,http://statistics.data.gov.uk/id/local-authority/32UF,Community Development,Swimming Pool,Agency Staff,14/08/2014,IJ00031955,60.00,Gadarch Design Services Ltd,
South Holland District Council,http://statistics.data.gov.uk/id/local-authority/32UF,Capital,HRA Capital,Works to Buildings (main Contractor),14/08/2014,IJ00031846,4548.00,Gaswise Services Limited,
South Holland District Council,http://statistics.data.gov.uk/id/local-authority/32UF,Capital,HRA Capital,Works to Buildings (main Contractor),14/08/2014,IJ00031848,3761.00,Gaswise Services Limited,
South Holland District Council,http://statistics.data.gov.uk/id/local-authority/32UF,Housing Landlord Manager,Planned Schemes - External,Gas Renewals,14/08/2014,IJ00031850,593.00,Gaswise Services Limited,
South Holland District Council,http://statistics.data.gov.uk/id/local-authority/32UF,Housing Landlord Manager,Planned Schemes - External,Gas Renewals,14/08/2014,IJ00031853,2562.00,Gaswise Services Limited,
South Holland District Council,http://statistics.data.gov.uk/id/local-authority/32UF,Environmental Services,Refuse Collection Service,Agency Staff,14/08/2014,IJ00031752,451.72,Integrity Plus Ltd,
South Holland District Council,http://statistics.data.gov.uk/id/local-authority/32UF,Environmental Services,Street Cleaning Service,Agency Staff,14/08/2014,IJ00031752,63.83,Integrity Plus Ltd,
South Holland District Council,http://statistics.data.gov.uk/id/local-authority/32UF,Environmental Services,Recycling Service,Agency Staff,14/08/2014,IJ00031752,225.86,Integrity Plus Ltd,
South Holland District Council,http://statistics.data.gov.uk/id/local-authority/32UF,Housing Landlord Manager,Void Repairs,Materials and Consumables,14/08/2014,IJ00031898,2556.55,Jackson Buildbase,
South Holland District Council,http://statistics.data.gov.uk/id/local-authority/32UF,Housing Landlord Manager,Responsive Repairs,Materials and Consumables,14/08/2014,IJ00031898,4818.51,Jackson Buildbase,
South Holland District Council,http://statistics.data.gov.uk/id/local-authority/32UF,Housing Landlord Manager,Planned Schemes - Internal,Materials and Consumables,14/08/2014,IJ00031898,438.82,Jackson Buildbase,
South Holland District Council,http://statistics.data.gov.uk/id/local-authority/32UF,Housing Landlord Manager,Estate Management,Agency Staff,14/08/2014,IJ00031781,705.41,James Andrews Recruitment Solutions,
South Holland District Council,http://statistics.data.gov.uk/id/local-authority/32UF,Housing Landlord Manager,Estate Management,Agency Staff,14/08/2014,IJ00031783,802.90,James Andrews Recruitment Solutions,
South Holland District Council,http://statistics.data.gov.uk/id/local-authority/32UF,Community Development,Sports Hall,Leisure Management,14/08/2014,IJ00031758,5458.54,Leisure Connection Ltd,
South Holland District Council,http://statistics.data.gov.uk/id/local-authority/32UF,Community Development,Swimming Pool,Leisure Management,14/08/2014,IJ00031758,5458.54,Leisure Connection Ltd,
South Holland District Council,http://statistics.data.gov.uk/id/local-authority/32UF,Housing Landlord Manager,Property Maintenance - Support,Professional & Contractors Fees,14/08/2014,IJ00031833,4050.00,M3 Consultancy Llp,
South Holland District Council,http://statistics.data.gov.uk/id/local-authority/32UF,Housing Landlord Manager,Tenants Rent Account,Housing Rent Refunds,14/08/2014,IJ00031961,522.52,Redacted Personal Information,REDACTED
South Holland District Council,http://statistics.data.gov.uk/id/local-authority/32UF,Planning,Development Management,Professional & Contractors Fees,14/08/2014,IJ00031796,3500.00,Ocella Ltd,
South Holland District Council,http://statistics.data.gov.uk/id/local-authority/32UF,Environmental Services,Refuse Collection Service,Professional & Contractors Fees,14/08/2014,IJ00031812,1184.75,Ocs Group Uk Limited TA Cannon,
South Holland District Council,http://statistics.data.gov.uk/id/local-authority/32UF,Community Development,South Holland Centre and TIC,Performers and Entertainers Fees,14/08/2014,IJ00031970,1441.25,Picturehouse Entertainment Limited,
South Holland District Council,http://statistics.data.gov.uk/id/local-authority/32UF,Planning,Conservation - Heritage,Grants and Contributions to Outside Bodies- No Service Recei,14/08/2014,IJ00031754,825.00,Plann.It Limited,
South Holland District Council,http://statistics.data.gov.uk/id/local-authority/32UF,Housing Landlord Manager,Void Repairs,Void Repairs,14/08/2014,IJ00031937,940.00,Robert Dunmore,
South Holland District Council,http://statistics.data.gov.uk/id/local-authority/32UF,Housing Landlord Manager,Void Repairs,Void Repairs,14/08/2014,IJ00031979,1950.00,Robert Dunmore,
South Holland District Council,http://statistics.data.gov.uk/id/local-authority/32UF,Democratic Services,European Elections,Postages,14/08/2014,IJ00031911,717.00,Royal Mail Group Ltd,
South Holland District Council,http://statistics.data.gov.uk/id/local-authority/32UF,Asset and Property,Footway Lighting,Electricity,14/08/2014,IJ00031818,4094.85,Southern Electric,
South Holland District Council,http://statistics.data.gov.uk/id/local-authority/32UF,Asset and Property,Council Offices Priory Road,Electricity,14/08/2014,IJ00031869,2098.15,Southern Electric,
South Holland District Council,http://statistics.data.gov.uk/id/local-authority/32UF,Community Development,South Holland Centre and TIC,Electricity,14/08/2014,IJ00031915,2356.56,Southern Electric,
South Holland District Council,http://statistics.data.gov.uk/id/local-authority/32UF,Environmental Services,Grounds Maintenance,Professional & Contractors Fees,14/08/2014,IJ00031792,1215.00,South Holland Maintenance Ltd,
South Holland District Council,http://statistics.data.gov.uk/id/local-authority/32UF,Environmental Services,Grounds Maintenance,Professional & Contractors Fees,14/08/2014,IJ00031841,3908.89,South Holland Maintenance Ltd,
South Holland District Council,http://statistics.data.gov.uk/id/local-authority/32UF,Housing Landlord Manager,Void Repairs,Void Repairs,14/08/2014,IJ00031837,4290.00,South Holland Maintenance Ltd,
South Holland District Council,http://statistics.data.gov.uk/id/local-authority/32UF,Housing Landlord Manager,Planned Schemes - External,Damp Proofing,14/08/2014,IJ00031727,513.50,Stanza Consulting,
South Holland District Council,http://statistics.data.gov.uk/id/local-authority/32UF,Housing Landlord Manager,Planned Schemes - External,Damp Proofing,14/08/2014,IJ00031785,762.00,Stanza Consulting,
South Holland District Council,http://statistics.data.gov.uk/id/local-authority/32UF,Environmental Services,Refuse Collection Service,Agency Staff,14/08/2014,IJ00031751,441.79,The Best Connection Group Ltd,
South Holland District Council,http://statistics.data.gov.uk/id/local-authority/32UF,Environmental Services,Recycling Service,Agency Staff,14/08/2014,IJ00031751,441.78,The Best Connection Group Ltd,
South Holland District Council,http://statistics.data.gov.uk/id/local-authority/32UF,Environmental Services,Street Cleaning Service,Agency Staff,14/08/2014,IJ00031751,208.98,The Best Connection Group Ltd,
South Holland District Council,http://statistics.data.gov.uk/id/local-authority/32UF,Capital,HRA Capital,Works to Buildings (main Contractor),14/08/2014,IJ00031882,2705.00,Tks Of Holbeach,
South Holland District Council,http://statistics.data.gov.uk/id/local-authority/32UF,Housing,Private Sector Housing,Grants and Contributions to Outside Bodies- No Service Recei,14/08/2014,IJ00031907,2245.00,Tks Of Holbeach,
South Holland District Council,http://statistics.data.gov.uk/id/local-authority/32UF,Community Development,South Holland Centre and TIC,Film and Entertainment Costs,14/08/2014,IJ00031919,697.98,Twentieth Century Fox Film Co Ltd,
South Holland District Council,http://statistics.data.gov.uk/id/local-authority/32UF,Environmental Services,Refuse Collection Service,Tyres,14/08/2014,IJ00031795,1856.23,Vaculug Traction Tyres Ltd,
South Holland District Council,http://statistics.data.gov.uk/id/local-authority/32UF,Environmental Services,Recycling Service,Tyres,14/08/2014,IJ00031795,1866.66,Vaculug Traction Tyres Ltd,
South Holland District Council,http://statistics.data.gov.uk/id/local-authority/32UF,Environmental Services,Street Cleaning Service,Tyres,14/08/2014,IJ00031795,168.17,Vaculug Traction Tyres Ltd,
South Holland District Council,http://statistics.data.gov.uk/id/local-authority/32UF,Environmental Services,Grounds Maintenance,Tyres,14/08/2014,IJ00031795,137.88,Vaculug Traction Tyres Ltd,
South Holland District Council,http://statistics.data.gov.uk/id/local-authority/32UF,Housing,Advances Housing Purchases,Premises Insurance,14/08/2014,IJ00031865,1082.17,Zurich Municipal,
South Holland District Council,http://statistics.data.gov.uk/id/local-authority/32UF,Community Development,Ayscoughfee Museum,Other Miscellaneous Expenses,14/08/2014,IJ00031737,1190.00,Four and Twenty Blackbirds,
South Holland District Council,http://statistics.data.gov.uk/id/local-authority/32UF,ICT and Customer Services,Network/Infrastructure,Computer Hardware Maintenance,14/08/2014,IJ00031746,1674.80,Hewlett Packard Ltd,
South Holland District Council,http://statistics.data.gov.uk/id/local-authority/32UF,Community Development,Ayscoughfee Museum,Other Miscellaneous Expenses,14/08/2014,IJ00031738,500.00,Peter Sansom,
South Holland District Council,http://statistics.data.gov.uk/id/local-authority/32UF,Finance,Treasury Management,Professional & Contractors Fees,14/08/2014,IJ00031985,593.27,Lloyds TSB,
South Holland District Council,http://statistics.data.gov.uk/id/local-authority/32UF,Housing Landlord Manager,Responsive Repairs,Buildings Maintenance - Responsive,14/08/2014,IJ00031874,2680.00,B J ROOFING,
South Holland District Council,http://statistics.data.gov.uk/id/local-authority/32UF,Housing Landlord Manager,Responsive Repairs,Buildings Maintenance - Responsive,14/08/2014,IJ00031876,1980.00,B J ROOFING,
South Holland District Council,http://statistics.data.gov.uk/id/local-authority/32UF,Housing Landlord Manager,Responsive Repairs,Buildings Maintenance - Responsive,14/08/2014,IJ00031885,680.00,B J ROOFING,
South Holland District Council,http://statistics.data.gov.uk/id/local-authority/32UF,Housing Landlord Manager,Responsive Repairs,Furniture and Equipment,14/08/2014,IJ00031875,311.24,VEOLIA ES UK LTD,
South Holland District Council,http://statistics.data.gov.uk/id/local-authority/32UF,Housing Landlord Manager,Void Repairs,Furniture and Equipment,14/08/2014,IJ00031875,311.24,VEOLIA ES UK LTD,
South Holland District Council,http://statistics.data.gov.uk/id/local-authority/32UF,Housing Landlord Manager,Responsive Repairs,Furniture and Equipment,14/08/2014,IJ00031870,733.40,VEOLIA ES UK LTD,
South Holland District Council,http://statistics.data.gov.uk/id/local-authority/32UF,Housing Landlord Manager,Void Repairs,Furniture and Equipment,14/08/2014,IJ00031870,733.40,VEOLIA ES UK LTD,
South Holland District Council,http://statistics.data.gov.uk/id/local-authority/32UF,Democratic Services,Democratic Representation and Management,Course Fees,14/08/2014,IJ00031755,1214.90,LG FUTURES LTD,
South Holland District Council,http://statistics.data.gov.uk/id/local-authority/32UF,Democratic Services,Democratic Representation and Management,Course Fees,14/08/2014,IJ00031756,1214.90,LG FUTURES LTD,
South Holland District Council,http://statistics.data.gov.uk/id/local-authority/32UF,Housing,Private Sector Housing,Grants and Contributions to Outside Bodies- No Service Recei,14/08/2014,IJ00031909,4800.00,MPL HOME IMPROVEMENTS SERVICES LINCS LTD,
South Holland District Council,http://statistics.data.gov.uk/id/local-authority/32UF,Community Development,Health Promotion,Other Miscellaneous Expenses,14/08/2014,IJ00031794,630.00,Cook Connect Ltd,
South Holland District Council,http://statistics.data.gov.uk/id/local-authority/32UF,Community Development,Health Promotion,Other Miscellaneous Expenses,14/08/2014,IJ00031988,580.00,Cook Connect Ltd,
South Holland District Council,http://statistics.data.gov.uk/id/local-authority/32UF,Community Development,Health Promotion,Other Miscellaneous Expenses,14/08/2014,IJ00031989,1350.00,Cook Connect Ltd,
South Holland District Council,http://statistics.data.gov.uk/id/local-authority/32UF,Housing Landlord Manager,Void Repairs,Void Repairs,14/08/2014,IJ00031938,759.00,Andrew Hicks t a Hicks Electrical,
South Holland District Council,http://statistics.data.gov.uk/id/local-authority/32UF,Housing Landlord Manager,Void Repairs,Void Repairs,14/08/2014,IJ00031978,880.00,Andrew Hicks t a Hicks Electrical,
South Holland District Council,http://statistics.data.gov.uk/id/local-authority/32UF,Housing,Private Sector Housing,Grants and Contributions to Outside Bodies- No Service Recei,14/08/2014,IJ00031753,2077.00,M Yould Plumbing and Heating Ltd,
South Holland District Council,http://statistics.data.gov.uk/id/local-authority/32UF,Community Development,Ayscoughfee Museum,Buildings Maintenance - Responsive,14/08/2014,IJ00031739,850.00,LINCOLNSHIRE MASONRY LTD,
South Holland District Council,http://statistics.data.gov.uk/id/local-authority/32UF,Housing Landlord Manager,Planned Schemes - External,External Painting Repairs,14/08/2014,IJ00031762,2662.27,Novus Property Solutions Ltd,
South Holland District Council,http://statistics.data.gov.uk/id/local-authority/32UF,Community Development,Sports Hall,Leisure Management,14/08/2014,IJ00031761,528.37,Leisure in the Community,
South Holland District Council,http://statistics.data.gov.uk/id/local-authority/32UF,Community Development,Swimming Pool,Leisure Management,14/08/2014,IJ00031761,528.38,Leisure in the Community,
South Holland District Council,http://statistics.data.gov.uk/id/local-authority/32UF,Environmental Services,Refuse Collection Service,Agency Staff,14/08/2014,IJ00031728,670.32,MRN Recruitment Ltd,
South Holland District Council,http://statistics.data.gov.uk/id/local-authority/32UF,Building Control,Building Control Fee Earning Account,Professional & Contractors Fees,14/08/2014,IJ00031797,606.07,Reliance High-Tech Limited,
South Holland District Council,http://statistics.data.gov.uk/id/local-authority/32UF,Housing Landlord Manager,Estate Management,Agency Staff,14/08/2014,IJ00031769,862.50,Venn Group Limited,
South Holland District Council,http://statistics.data.gov.uk/id/local-authority/32UF,Housing Landlord Manager,Estate Management,Agency Staff,14/08/2014,IJ00031770,862.50,Venn Group Limited,
South Holland District Council,http://statistics.data.gov.uk/id/local-authority/32UF,Economic Development,Grants4Growth,Professional & Contractors Fees,14/08/2014,IJ00031804,1325.00,Lava Marketing Communications Limited,
South Holland District Council,http://statistics.data.gov.uk/id/local-authority/32UF,Economic Development,Grants4Growth,Grants and Contributions to Outside Bodies- No Service Recei,14/08/2014,IJ00031745,8007.00,George Barnsdale and Sons Ltd,
South Holland District Council,http://statistics.data.gov.uk/id/local-authority/32UF,Democratic Services,Democratic Representation and Management,Other Miscellaneous Expenses,14/08/2014,IJ00031860,2500.00,St Gilbert and St Hugh PCC,
South Holland District Council,http://statistics.data.gov.uk/id/local-authority/32UF,ICT and Customer Services,Network/Infrastructure,Computer Software Licence Costs,14/08/2014,IJ00031969,9980.39,Phoenix Software Ltd,
South Holland District Council,http://statistics.data.gov.uk/id/local-authority/32UF,Housing Landlord Manager,Housing Strategy,Professional & Contractors Fees,14/08/2014,IJ00031968,1899.90,LAVAT,
South Holland District Council,http://statistics.data.gov.uk/id/local-authority/32UF,Environmental Services,Refuse Collection Service,Agency Staff,21/08/2014,IJ00032187,425.25,247 Personnel Ltd,
South Holland District Council,http://statistics.data.gov.uk/id/local-authority/32UF,Environmental Services,Recycling Service,Agency Staff,21/08/2014,IJ00032187,594.00,247 Personnel Ltd,
South Holland District Council,http://statistics.data.gov.uk/id/local-authority/32UF,Environmental Services,Public Conveniences,Water and Sewerage Charges,21/08/2014,IJ00032047,517.24,Anglian Water,
South Holland District Council,http://statistics.data.gov.uk/id/local-authority/32UF,Environmental Services,Refuse Collection Service,Agency Staff,21/08/2014,IJ00032002,471.97,Blue Arrow Ltd,
South Holland District Council,http://statistics.data.gov.uk/id/local-authority/32UF,Environmental Services,Recycling Service,Agency Staff,21/08/2014,IJ00032002,1116.50,Blue Arrow Ltd,
South Holland District Council,http://statistics.data.gov.uk/id/local-authority/32UF,Environmental Services,Grounds Maintenance,Agency Staff,21/08/2014,IJ00032002,1803.37,Blue Arrow Ltd,
South Holland District Council,http://statistics.data.gov.uk/id/local-authority/32UF,Environmental Services,Street Cleaning Service,Agency Staff,21/08/2014,IJ00032002,228.38,Blue Arrow Ltd,
South Holland District Council,http://statistics.data.gov.uk/id/local-authority/32UF,Environmental Services,Waste Supplementary Services,Agency Staff,21/08/2014,IJ00032002,96.74,Blue Arrow Ltd,
South Holland District Council,http://statistics.data.gov.uk/id/local-authority/32UF,Building Control,Building Control Other Services,Buildings Maintenance - Programmed,21/08/2014,IJ00032116,520.00,Brooks (Spalding) Ltd,
South Holland District Council,http://statistics.data.gov.uk/id/local-authority/32UF,Building Control,Building Control Other Services,Buildings Maintenance - Programmed,21/08/2014,IJ00032117,1235.00,Brooks (Spalding) Ltd,
South Holland District Council,http://statistics.data.gov.uk/id/local-authority/32UF,Building Control,Building Control Other Services,Buildings Maintenance - Programmed,21/08/2014,IJ00032118,1170.00,Brooks (Spalding) Ltd,
South Holland District Council,http://statistics.data.gov.uk/id/local-authority/32UF,Housing Landlord Manager,Responsive Repairs,Fuel & Oil,21/08/2014,IJ00032169,468.56,C H Jones Ltd,
South Holland District Council,http://statistics.data.gov.uk/id/local-authority/32UF,Environmental Services,Grounds Maintenance,Fuel & Oil,21/08/2014,IJ00032169,4.41,C H Jones Ltd,
South Holland District Council,http://statistics.data.gov.uk/id/local-authority/32UF,Environmental Services,Grounds Maintenance,Fuel & Oil,21/08/2014,IJ00032169,307.94,C H Jones Ltd,
South Holland District Council,http://statistics.data.gov.uk/id/local-authority/32UF,Environmental Services,Recycling Service,Fuel & Oil,21/08/2014,IJ00032169,1842.46,C H Jones Ltd,
South Holland District Council,http://statistics.data.gov.uk/id/local-authority/32UF,Environmental Services,Street Cleaning Service,Fuel & Oil,21/08/2014,IJ00032169,451.18,C H Jones Ltd,
South Holland District Council,http://statistics.data.gov.uk/id/local-authority/32UF,Environmental Services,Refuse Collection Service,Fuel & Oil,21/08/2014,IJ00032169,3029.26,C H Jones Ltd,
South Holland District Council,http://statistics.data.gov.uk/id/local-authority/32UF,Housing Landlord Manager,Void Repairs,Fuel & Oil,21/08/2014,IJ00032169,146.70,C H Jones Ltd,
South Holland District Council,http://statistics.data.gov.uk/id/local-authority/32UF,Housing Landlord Manager,Planned Schemes - Internal,Fuel & Oil,21/08/2014,IJ00032169,140.29,C H Jones Ltd,
South Holland District Council,http://statistics.data.gov.uk/id/local-authority/32UF,Environmental Services,Markets,Fuel & Oil,21/08/2014,IJ00032169,22.83,C H Jones Ltd,
South Holland District Council,http://statistics.data.gov.uk/id/local-authority/32UF,Environmental Services,Car Parking,Fuel & Oil,21/08/2014,IJ00032169,4.41,C H Jones Ltd,
South Holland District Council,http://statistics.data.gov.uk/id/local-authority/32UF,Environmental Health,Control of Dogs,Fuel & Oil,21/08/2014,IJ00032169,54.76,C H Jones Ltd,
South Holland District Council,http://statistics.data.gov.uk/id/local-authority/32UF,Environmental Services,Recycling Service,Fuel & Oil,21/08/2014,IJ00032169,66.66,C H Jones Ltd,
South Holland District Council,http://statistics.data.gov.uk/id/local-authority/32UF,Housing,Private Sector Housing,Grants and Contributions to Outside Bodies- No Service Recei,21/08/2014,IJ00032012,2665.00,Coda Bulders Ltd,
South Holland District Council,http://statistics.data.gov.uk/id/local-authority/32UF,Environmental Services,Refuse Collection Service,Fuel & Oil,21/08/2014,IJ00032089,625.20,C P Davidson & Sons Ltd,
South Holland District Council,http://statistics.data.gov.uk/id/local-authority/32UF,Collection Fund,Collection Fund,Central Share of NDR Income - Government,21/08/2014,IJ00032198,1322852.00,Department For Communities & Local Government,
South Holland District Council,http://statistics.data.gov.uk/id/local-authority/32UF,Collection Fund,Collection Fund,Transitional Protection Payments,21/08/2014,IJ00032198,-43762.00,Department For Communities & Local Government,
South Holland District Council,http://statistics.data.gov.uk/id/local-authority/32UF,Finance,Taxation and Non Specific Grants,Business Rates Tariff,21/08/2014,IJ00032198,689770.00,Department For Communities & Local Government,
South Holland District Council,http://statistics.data.gov.uk/id/local-authority/32UF,Collection Fund,Collection Fund,Contribution to Deficit (NDR),21/08/2014,IJ00032198,-12505.00,Department For Communities & Local Government,
South Holland District Council,http://statistics.data.gov.uk/id/local-authority/32UF,Housing Landlord Manager,Estate Management,Buildings Maintenance - Responsive,21/08/2014,IJ00032160,510.00,Elston Environmental Services,
South Holland District Council,http://statistics.data.gov.uk/id/local-authority/32UF,Housing Landlord Manager,Intensive Landlord,Gas,21/08/2014,IJ00032044,728.78,Espo,
South Holland District Council,http://statistics.data.gov.uk/id/local-authority/32UF,Community Development,South Holland Centre and TIC,Gas,21/08/2014,IJ00032133,501.32,Espo Gas And Electricity,
South Holland District Council,http://statistics.data.gov.uk/id/local-authority/32UF,HR,"HR, Training and Development",Other Employee Expenses,21/08/2014,IJ00032162,75.86,Fideliti Limited,
South Holland District Council,http://statistics.data.gov.uk/id/local-authority/32UF,Balance Sheet,Balance Sheet,Payroll SHDC Child Care,21/08/2014,IJ00032162,1896.50,Fideliti Limited,
South Holland District Council,http://statistics.data.gov.uk/id/local-authority/32UF,Capital,HRA Capital,Works to Buildings (main Contractor),21/08/2014,IJ00032077,133551.00,Foster Property Maintenance Ltd,
South Holland District Council,http://statistics.data.gov.uk/id/local-authority/32UF,Housing Landlord Manager,Responsive Repairs,Materials and Consumables,21/08/2014,IJ00032154,860.00,G W Engineering (Lincs) Ltd,
South Holland District Council,http://statistics.data.gov.uk/id/local-authority/32UF,Environmental Services,Refuse Collection Service,Agency Staff,21/08/2014,IJ00032096,378.08,Integrity Plus Ltd,
South Holland District Council,http://statistics.data.gov.uk/id/local-authority/32UF,Environmental Services,Recycling Service,Agency Staff,21/08/2014,IJ00032096,363.33,Integrity Plus Ltd,
South Holland District Council,http://statistics.data.gov.uk/id/local-authority/32UF,Environmental Services,Refuse Collection Service,Agency Staff,21/08/2014,IJ00032188,284.78,Integrity Plus Ltd,
South Holland District Council,http://statistics.data.gov.uk/id/local-authority/32UF,Environmental Services,Recycling Service,Agency Staff,21/08/2014,IJ00032188,368.25,Integrity Plus Ltd,
South Holland District Council,http://statistics.data.gov.uk/id/local-authority/32UF,Housing Landlord Manager,Void Repairs,Materials and Consumables,21/08/2014,IJ00032082,2009.47,Jackson Buildbase,
South Holland District Council,http://statistics.data.gov.uk/id/local-authority/32UF,Housing Landlord Manager,Responsive Repairs,Materials and Consumables,21/08/2014,IJ00032082,2760.16,Jackson Buildbase,
South Holland District Council,http://statistics.data.gov.uk/id/local-authority/32UF,Housing Landlord Manager,Planned Schemes - Internal,Materials and Consumables,21/08/2014,IJ00032082,528.10,Jackson Buildbase,
South Holland District Council,http://statistics.data.gov.uk/id/local-authority/32UF,Housing Landlord Manager,Estate Management,Agency Staff,21/08/2014,IJ00032013,848.78,James Andrews Recruitment Solutions,
South Holland District Council,http://statistics.data.gov.uk/id/local-authority/32UF,Housing Landlord Manager,Estate Management,Agency Staff,21/08/2014,IJ00032014,848.78,James Andrews Recruitment Solutions,
South Holland District Council,http://statistics.data.gov.uk/id/local-authority/32UF,Asset and Property,Industrial Dev Wardentree,Buildings Maintenance - Responsive,21/08/2014,IJ00032103,1281.00,K L Morbey Fencing,
South Holland District Council,http://statistics.data.gov.uk/id/local-authority/32UF,Capital,HRA Capital,Works to Buildings (main Contractor),21/08/2014,IJ00032078,23655.13,Langwith Construction,
South Holland District Council,http://statistics.data.gov.uk/id/local-authority/32UF,Building Control,Building Control Other Services,Buildings Maintenance - Responsive,21/08/2014,IJ00031992,2126.52,Lincolnshire County Council,
South Holland District Council,http://statistics.data.gov.uk/id/local-authority/32UF,ICT and Customer Services,Network/Infrastructure,Computer Hardware Maintenance,21/08/2014,IJ00032081,2230.01,Lincolnshire County Council,
South Holland District Council,http://statistics.data.gov.uk/id/local-authority/32UF,Environmental Health,Health and Safety,Legal Fees,21/08/2014,IJ00032185,3400.00,Maples Solicitors,
South Holland District Council,http://statistics.data.gov.uk/id/local-authority/32UF,Housing,Private Sector Housing,Grants and Contributions to Outside Bodies- No Service Recei,21/08/2014,IJ00032043,1973.00,M E Goodyear Property Maintenance,
South Holland District Council,http://statistics.data.gov.uk/id/local-authority/32UF,Housing Landlord Manager,Responsive Repairs,Buildings Maintenance - Responsive,21/08/2014,IJ00031879,2156.20,M & R Glass & Glazing Ltd,
South Holland District Council,http://statistics.data.gov.uk/id/local-authority/32UF,Housing Landlord Manager,Responsive Repairs,Buildings Maintenance - Responsive,21/08/2014,IJ00032004,5323.60,M & R Glass & Glazing Ltd,
South Holland District Council,http://statistics.data.gov.uk/id/local-authority/32UF,ICT and Customer Services,Network/Infrastructure,Computer Hardware Maintenance,21/08/2014,IJ00032080,4177.00,Netfort Technologies,
South Holland District Council,http://statistics.data.gov.uk/id/local-authority/32UF,Housing Landlord Manager,Alarm Monitoring,Other Communication Costs,21/08/2014,IJ00032011,6131.86,Northern Housing Consortium Ltd,
South Holland District Council,http://statistics.data.gov.uk/id/local-authority/32UF,Community Development,South Holland Centre and TIC,Fixtures And Fittings,21/08/2014,IJ00032167,507.42,Otis Ltd,
South Holland District Council,http://statistics.data.gov.uk/id/local-authority/32UF,Planning,Conservation - Heritage,Grants and Contributions to Outside Bodies- No Service Recei,21/08/2014,IJ00031993,627.00,Plann.It Limited,
South Holland District Council,http://statistics.data.gov.uk/id/local-authority/32UF,Community Development,South Holland Centre and TIC,Buildings Maintenance - Programmed,21/08/2014,IJ00032123,13680.25,Protec Fire Detection Plc,
South Holland District Council,http://statistics.data.gov.uk/id/local-authority/32UF,Housing Landlord Manager,Responsive Repairs,Materials and Consumables,21/08/2014,IJ00032139,521.43,Rexel Uk Ltd,
South Holland District Council,http://statistics.data.gov.uk/id/local-authority/32UF,Housing Landlord Manager,Responsive Repairs,Materials and Consumables,21/08/2014,IJ00032149,7893.00,Rexel Uk Ltd,
South Holland District Council,http://statistics.data.gov.uk/id/local-authority/32UF,Housing Landlord Manager,Estate Management,Electricity,21/08/2014,IJ00032038,50.92,Southern Electric,
South Holland District Council,http://statistics.data.gov.uk/id/local-authority/32UF,Housing Landlord Manager,Estate Management,Electricity,21/08/2014,IJ00032038,36.19,Southern Electric,
South Holland District Council,http://statistics.data.gov.uk/id/local-authority/32UF,Housing Landlord Manager,Estate Management,Electricity,21/08/2014,IJ00032038,72.68,Southern Electric,
South Holland District Council,http://statistics.data.gov.uk/id/local-authority/32UF,Housing Landlord Manager,Sheltered Housing,Electricity,21/08/2014,IJ00032038,14.78,Southern Electric,
South Holland District Council,http://statistics.data.gov.uk/id/local-authority/32UF,Housing Landlord Manager,Sheltered Housing,Electricity,21/08/2014,IJ00032038,27.18,Southern Electric,
South Holland District Council,http://statistics.data.gov.uk/id/local-authority/32UF,Housing Landlord Manager,Housing Sewerage Works,Electricity,21/08/2014,IJ00032038,26.56,Southern Electric,
South Holland District Council,http://statistics.data.gov.uk/id/local-authority/32UF,Housing Landlord Manager,Housing Sewerage Works,Electricity,21/08/2014,IJ00032038,26.56,Southern Electric,
South Holland District Council,http://statistics.data.gov.uk/id/local-authority/32UF,Housing Landlord Manager,Housing Sewerage Works,Electricity,21/08/2014,IJ00032038,29.26,Southern Electric,
South Holland District Council,http://statistics.data.gov.uk/id/local-authority/32UF,Housing Landlord Manager,Housing Sewerage Works,Electricity,21/08/2014,IJ00032038,25.91,Southern Electric,
South Holland District Council,http://statistics.data.gov.uk/id/local-authority/32UF,Housing Landlord Manager,Housing Sewerage Works,Electricity,21/08/2014,IJ00032038,63.58,Southern Electric,
South Holland District Council,http://statistics.data.gov.uk/id/local-authority/32UF,Housing Landlord Manager,Housing Sewerage Works,Electricity,21/08/2014,IJ00032038,124.59,Southern Electric,
South Holland District Council,http://statistics.data.gov.uk/id/local-authority/32UF,Housing Landlord Manager,Housing Sewerage Works,Electricity,21/08/2014,IJ00032038,105.31,Southern Electric,
South Holland District Council,http://statistics.data.gov.uk/id/local-authority/32UF,Housing Landlord Manager,Housing Sewerage Works,Electricity,21/08/2014,IJ00032038,152.73,Southern Electric,
South Holland District Council,http://statistics.data.gov.uk/id/local-authority/32UF,Housing Landlord Manager,Housing Sewerage Works,Electricity,21/08/2014,IJ00032038,166.62,Southern Electric,
South Holland District Council,http://statistics.data.gov.uk/id/local-authority/32UF,Housing Landlord Manager,Housing Sewerage Works,Electricity,21/08/2014,IJ00032038,162.33,Southern Electric,
South Holland District Council,http://statistics.data.gov.uk/id/local-authority/32UF,Housing Landlord Manager,Housing Sewerage Works,Electricity,21/08/2014,IJ00032038,159.24,Southern Electric,
South Holland District Council,http://statistics.data.gov.uk/id/local-authority/32UF,Housing Landlord Manager,Housing Sewerage Works,Electricity,21/08/2014,IJ00032038,151.81,Southern Electric,
South Holland District Council,http://statistics.data.gov.uk/id/local-authority/32UF,Housing Landlord Manager,Housing Sewerage Works,Electricity,21/08/2014,IJ00032038,71.57,Southern Electric,
South Holland District Council,http://statistics.data.gov.uk/id/local-authority/32UF,Housing Landlord Manager,Housing Sewerage Works,Electricity,21/08/2014,IJ00032038,244.78,Southern Electric,
South Holland District Council,http://statistics.data.gov.uk/id/local-authority/32UF,Housing Landlord Manager,Housing Sewerage Works,Electricity,21/08/2014,IJ00032038,371.44,Southern Electric,
South Holland District Council,http://statistics.data.gov.uk/id/local-authority/32UF,Housing Landlord Manager,Housing Sewerage Works,Electricity,21/08/2014,IJ00032038,215.84,Southern Electric,
South Holland District Council,http://statistics.data.gov.uk/id/local-authority/32UF,Housing Landlord Manager,Housing Sewerage Works,Electricity,21/08/2014,IJ00032038,178.21,Southern Electric,
South Holland District Council,http://statistics.data.gov.uk/id/local-authority/32UF,Housing Landlord Manager,Housing Sewerage Works,Electricity,21/08/2014,IJ00032038,60.76,Southern Electric,
South Holland District Council,http://statistics.data.gov.uk/id/local-authority/32UF,Housing Landlord Manager,Housing Sewerage Works,Electricity,21/08/2014,IJ00032038,180.91,Southern Electric,
South Holland District Council,http://statistics.data.gov.uk/id/local-authority/32UF,Housing Landlord Manager,Housing Sewerage Works,Electricity,21/08/2014,IJ00032038,173.36,Southern Electric,
South Holland District Council,http://statistics.data.gov.uk/id/local-authority/32UF,Housing Landlord Manager,Housing Sewerage Works,Electricity,21/08/2014,IJ00032038,92.71,Southern Electric,
South Holland District Council,http://statistics.data.gov.uk/id/local-authority/32UF,Housing Landlord Manager,Housing Sewerage Works,Electricity,21/08/2014,IJ00032038,198.52,Southern Electric,
South Holland District Council,http://statistics.data.gov.uk/id/local-authority/32UF,Housing Landlord Manager,Housing Sewerage Works,Electricity,21/08/2014,IJ00032038,92.63,Southern Electric,
South Holland District Council,http://statistics.data.gov.uk/id/local-authority/32UF,Housing Landlord Manager,Housing Sewerage Works,Electricity,21/08/2014,IJ00032038,229.01,Southern Electric,
South Holland District Council,http://statistics.data.gov.uk/id/local-authority/32UF,Asset and Property,Depot Short Street,Electricity,21/08/2014,IJ00032038,1329.13,Southern Electric,
South Holland District Council,http://statistics.data.gov.uk/id/local-authority/32UF,Environmental Services,Public Conveniences,Electricity,21/08/2014,IJ00032038,95.73,Southern Electric,
South Holland District Council,http://statistics.data.gov.uk/id/local-authority/32UF,Housing Landlord Manager,Housing Sewerage Works,Electricity,21/08/2014,IJ00032038,74.73,Southern Electric,
South Holland District Council,http://statistics.data.gov.uk/id/local-authority/32UF,Housing Landlord Manager,Housing Sewerage Works,Electricity,21/08/2014,IJ00032038,338.90,Southern Electric,
South Holland District Council,http://statistics.data.gov.uk/id/local-authority/32UF,Housing Landlord Manager,Housing Sewerage Works,Electricity,21/08/2014,IJ00032038,947.46,Southern Electric,
South Holland District Council,http://statistics.data.gov.uk/id/local-authority/32UF,Housing Landlord Manager,Housing Sewerage Works,Electricity,21/08/2014,IJ00032038,266.77,Southern Electric,
South Holland District Council,http://statistics.data.gov.uk/id/local-authority/32UF,Housing Landlord Manager,Housing Sewerage Works,Electricity,21/08/2014,IJ00032038,74.07,Southern Electric,
South Holland District Council,http://statistics.data.gov.uk/id/local-authority/32UF,Housing Landlord Manager,Housing Sewerage Works,Electricity,21/08/2014,IJ00032038,209.66,Southern Electric,
South Holland District Council,http://statistics.data.gov.uk/id/local-authority/32UF,Housing Landlord Manager,Housing Sewerage Works,Electricity,21/08/2014,IJ00032038,81.18,Southern Electric,
South Holland District Council,http://statistics.data.gov.uk/id/local-authority/32UF,Housing Landlord Manager,Housing Sewerage Works,Electricity,21/08/2014,IJ00032038,244.51,Southern Electric,
South Holland District Council,http://statistics.data.gov.uk/id/local-authority/32UF,Housing Landlord Manager,Housing Sewerage Works,Electricity,21/08/2014,IJ00032038,69.98,Southern Electric,
South Holland District Council,http://statistics.data.gov.uk/id/local-authority/32UF,Housing Landlord Manager,Housing Sewerage Works,Electricity,21/08/2014,IJ00032038,146.97,Southern Electric,
South Holland District Council,http://statistics.data.gov.uk/id/local-authority/32UF,Housing Landlord Manager,Housing Sewerage Works,Electricity,21/08/2014,IJ00032038,132.12,Southern Electric,
South Holland District Council,http://statistics.data.gov.uk/id/local-authority/32UF,Housing Landlord Manager,Housing Sewerage Works,Electricity,21/08/2014,IJ00032038,99.95,Southern Electric,
South Holland District Council,http://statistics.data.gov.uk/id/local-authority/32UF,Housing Landlord Manager,Housing Sewerage Works,Electricity,21/08/2014,IJ00032038,141.09,Southern Electric,
South Holland District Council,http://statistics.data.gov.uk/id/local-authority/32UF,Housing Landlord Manager,Housing Sewerage Works,Electricity,21/08/2014,IJ00032038,460.91,Southern Electric,
South Holland District Council,http://statistics.data.gov.uk/id/local-authority/32UF,Housing Landlord Manager,Housing Sewerage Works,Electricity,21/08/2014,IJ00032038,49.11,Southern Electric,
South Holland District Council,http://statistics.data.gov.uk/id/local-authority/32UF,Housing Landlord Manager,Housing Sewerage Works,Electricity,21/08/2014,IJ00032038,28.49,Southern Electric,
South Holland District Council,http://statistics.data.gov.uk/id/local-authority/32UF,Asset and Property,Industrial Dev Crowland,Electricity,21/08/2014,IJ00032038,39.91,Southern Electric,
South Holland District Council,http://statistics.data.gov.uk/id/local-authority/32UF,Environmental Services,Public Conveniences,Electricity,21/08/2014,IJ00032038,50.63,Southern Electric,
South Holland District Council,http://statistics.data.gov.uk/id/local-authority/32UF,Environmental Services,Public Conveniences,Electricity,21/08/2014,IJ00032038,60.73,Southern Electric,
South Holland District Council,http://statistics.data.gov.uk/id/local-authority/32UF,Environmental Services,Public Conveniences,Electricity,21/08/2014,IJ00032038,74.52,Southern Electric,
South Holland District Council,http://statistics.data.gov.uk/id/local-authority/32UF,Environmental Services,Public Conveniences,Electricity,21/08/2014,IJ00032038,60.14,Southern Electric,
South Holland District Council,http://statistics.data.gov.uk/id/local-authority/32UF,Environmental Services,Public Conveniences,Electricity,21/08/2014,IJ00032038,62.29,Southern Electric,
South Holland District Council,http://statistics.data.gov.uk/id/local-authority/32UF,Environmental Services,Public Conveniences,Electricity,21/08/2014,IJ00032038,65.06,Southern Electric,
South Holland District Council,http://statistics.data.gov.uk/id/local-authority/32UF,Environmental Services,Public Conveniences,Electricity,21/08/2014,IJ00032038,64.65,Southern Electric,
South Holland District Council,http://statistics.data.gov.uk/id/local-authority/32UF,Housing Landlord Manager,Housing Sewerage Works,Electricity,21/08/2014,IJ00032038,145.54,Southern Electric,
South Holland District Council,http://statistics.data.gov.uk/id/local-authority/32UF,Housing Landlord Manager,Housing Sewerage Works,Electricity,21/08/2014,IJ00032038,541.71,Southern Electric,
South Holland District Council,http://statistics.data.gov.uk/id/local-authority/32UF,Community Development,Ayscoughfee Museum,Electricity,21/08/2014,IJ00032038,925.58,Southern Electric,
South Holland District Council,http://statistics.data.gov.uk/id/local-authority/32UF,Community Development,Ayscoughfee Museum,Electricity,21/08/2014,IJ00032038,2883.18,Southern Electric,
South Holland District Council,http://statistics.data.gov.uk/id/local-authority/32UF,Environmental Services,Public Conveniences,Electricity,21/08/2014,IJ00032038,234.78,Southern Electric,
South Holland District Council,http://statistics.data.gov.uk/id/local-authority/32UF,Environmental Services,Grounds Maintenance,Professional & Contractors Fees,21/08/2014,IJ00032128,1095.00,South Holland Maintenance Ltd,
South Holland District Council,http://statistics.data.gov.uk/id/local-authority/32UF,Housing Landlord Manager,Responsive Repairs,Buildings Maintenance - Responsive,21/08/2014,IJ00032156,785.00,South Holland Maintenance Ltd,
South Holland District Council,http://statistics.data.gov.uk/id/local-authority/32UF,Housing Landlord Manager,Void Repairs,Void Repairs,21/08/2014,IJ00032159,7285.00,South Holland Maintenance Ltd,
South Holland District Council,http://statistics.data.gov.uk/id/local-authority/32UF,Community Development,Cultural Events,Other Miscellaneous Expenses,21/08/2014,IJ00031995,1021.25,Tega Hire,
South Holland District Council,http://statistics.data.gov.uk/id/local-authority/32UF,Environmental Services,Recycling Service,Agency Staff,21/08/2014,IJ00032097,514.68,The Best Connection Group Ltd,
South Holland District Council,http://statistics.data.gov.uk/id/local-authority/32UF,Environmental Services,Street Cleaning Service,Agency Staff,21/08/2014,IJ00032097,519.55,The Best Connection Group Ltd,
South Holland District Council,http://statistics.data.gov.uk/id/local-authority/32UF,Community Development,South Holland Centre and TIC,Computer Hardware Maintenance,21/08/2014,IJ00032177,1637.20,Tickets.Com Limited,
South Holland District Council,http://statistics.data.gov.uk/id/local-authority/32UF,Community Development,South Holland Centre and TIC,Film and Entertainment Costs,21/08/2014,IJ00032134,857.09,Twentieth Century Fox Film Co Ltd,
South Holland District Council,http://statistics.data.gov.uk/id/local-authority/32UF,Finance,Holding and Recharge Account,Fees and Charges General,21/08/2014,IJ00032173,-30.12,UNISON,
South Holland District Council,http://statistics.data.gov.uk/id/local-authority/32UF,Balance Sheet,Balance Sheet,Payroll-Unison,21/08/2014,IJ00032173,1204.65,UNISON,
South Holland District Council,http://statistics.data.gov.uk/id/local-authority/32UF,Community Development,South Holland Centre and TIC,Film and Entertainment Costs,21/08/2014,IJ00032129,2022.94,Universal Pictures International Uk,
South Holland District Council,http://statistics.data.gov.uk/id/local-authority/32UF,Planning,Development Management,Professional & Contractors Fees,21/08/2014,IJ00032066,2502.30,Valuation Office Agency,
South Holland District Council,http://statistics.data.gov.uk/id/local-authority/32UF,Community Development,South Holland Centre and TIC,Film and Entertainment Costs,21/08/2014,IJ00032132,998.55,Warner Bros Distributors Ltd,
South Holland District Council,http://statistics.data.gov.uk/id/local-authority/32UF,Community Development,Ayscoughfee Museum,Other Miscellaneous Expenses,21/08/2014,IJ00032131,5200.00,Four and Twenty Blackbirds,
South Holland District Council,http://statistics.data.gov.uk/id/local-authority/32UF,Planning,Planning Policy,Staff Recruitment,21/08/2014,IJ00032050,1850.00,Haymarket Media Group,
South Holland District Council,http://statistics.data.gov.uk/id/local-authority/32UF,Planning,Development Management,Staff Recruitment,21/08/2014,IJ00032050,925.00,Haymarket Media Group,
South Holland District Council,http://statistics.data.gov.uk/id/local-authority/32UF,Asset and Property,Footway Lighting,Furniture and Equipment,21/08/2014,IJ00032099,1112.00,E.on Sustainable Energy,
South Holland District Council,http://statistics.data.gov.uk/id/local-authority/32UF,Community Development,South Holland Centre and TIC,Premises and Room Hire,21/08/2014,IJ00032136,-343.33,NIGEL SYER,
South Holland District Council,http://statistics.data.gov.uk/id/local-authority/32UF,Community Development,South Holland Centre and TIC,Other Hire Fees,21/08/2014,IJ00032136,-81.67,NIGEL SYER,
South Holland District Council,http://statistics.data.gov.uk/id/local-authority/32UF,Community Development,South Holland Centre and TIC,Payments to Bodies in Respect of Income Collected,21/08/2014,IJ00032136,2886.00,NIGEL SYER,
South Holland District Council,http://statistics.data.gov.uk/id/local-authority/32UF,Community Development,South Holland Centre and TIC,Commission,21/08/2014,IJ00032136,-432.90,NIGEL SYER,
South Holland District Council,http://statistics.data.gov.uk/id/local-authority/32UF,Capital,HRA Capital,Works to Buildings (main Contractor),21/08/2014,IJ00032147,625.20,1st Choice Insulations Ltd,
South Holland District Council,http://statistics.data.gov.uk/id/local-authority/32UF,Capital,HRA Capital,Works to Buildings (main Contractor),21/08/2014,IJ00032150,2550.80,1st Choice Insulations Ltd,
South Holland District Council,http://statistics.data.gov.uk/id/local-authority/32UF,Capital,HRA Capital,Works to Buildings (main Contractor),21/08/2014,IJ00031994,187941.00,Willmott Dixon Partnerships Ltd,
South Holland District Council,http://statistics.data.gov.uk/id/local-authority/32UF,Housing Landlord Manager,Community Facilities,Furniture and Equipment,21/08/2014,IJ00032138,2414.88,The Safety Letterbox Company Ltd,
South Holland District Council,http://statistics.data.gov.uk/id/local-authority/32UF,Economic Development,Economic Development,Grants and Contributions to Outside Bodies- No Service Recei,21/08/2014,IJ00032073,1000.00,Peakhill Assocaites,
South Holland District Council,http://statistics.data.gov.uk/id/local-authority/32UF,Balance Sheet,Balance Sheet,Current Assets Short Term Investments,21/08/2014,IJ00032195,1500444.47,King and Shaxon,
South Holland District Council,http://statistics.data.gov.uk/id/local-authority/32UF,Capital,HRA Capital,Works to Buildings (main Contractor),21/08/2014,IJ00032071,2554.00,Lincs Water Services Ltd,
South Holland District Council,http://statistics.data.gov.uk/id/local-authority/32UF,Capital,HRA Capital,Works to Buildings (main Contractor),21/08/2014,IJ00032069,4459.00,Lincs Water Services Ltd,
South Holland District Council,http://statistics.data.gov.uk/id/local-authority/32UF,Housing Landlord Manager,Housing Allocations,Professional & Contractors Fees,21/08/2014,IJ00032051,1950.00,Circle Housing,
South Holland District Council,http://statistics.data.gov.uk/id/local-authority/32UF,Housing Landlord Manager,Housing Allocations,Professional & Contractors Fees,21/08/2014,IJ00032057,733.95,Circle Housing,
South Holland District Council,http://statistics.data.gov.uk/id/local-authority/32UF,Housing Landlord Manager,Housing Allocations,Professional & Contractors Fees,21/08/2014,IJ00032053,4077.15,The Housing Ombudsman,
South Holland District Council,http://statistics.data.gov.uk/id/local-authority/32UF,Housing Landlord Manager,Tenants Rent Account,Housing Rent Refunds,21/08/2014,IJ00032174,707.75,Redacted Personal Information,REDACTED
South Holland District Council,http://statistics.data.gov.uk/id/local-authority/32UF,Community Development,South Holland Centre and TIC,Public Courses and Workshops,28/08/2014,IJ00032243,1560.00,Act II,
South Holland District Council,http://statistics.data.gov.uk/id/local-authority/32UF,Environmental Services,Car Parking,Income Collected on Behalf of External Organisations,28/08/2014,IJ00032257,6508.95,Broadgate Homes,
South Holland District Council,http://statistics.data.gov.uk/id/local-authority/32UF,Housing Landlord Manager,Property Maintenance - Support,Course Fees,28/08/2014,IJ00032262,580.00,Chisletts (Spalding) Ltd,
South Holland District Council,http://statistics.data.gov.uk/id/local-authority/32UF,Housing Landlord Manager,Estate Management,Buildings Maintenance - Responsive,28/08/2014,IJ00032224,720.00,Elston Environmental Services,
South Holland District Council,http://statistics.data.gov.uk/id/local-authority/32UF,Housing Landlord Manager,Estate Management,Buildings Maintenance - Responsive,28/08/2014,IJ00032231,570.00,Elston Environmental Services,
South Holland District Council,http://statistics.data.gov.uk/id/local-authority/32UF,Housing Landlord Manager,Void Repairs,Void Repairs,28/08/2014,IJ00032265,960.00,Feneley Flooring Co. Ltd,
South Holland District Council,http://statistics.data.gov.uk/id/local-authority/32UF,Community Development,District CCTV,Other Communication Costs,28/08/2014,IJ00032279,700.14,G T S Security,
South Holland District Council,http://statistics.data.gov.uk/id/local-authority/32UF,Community Development,District CCTV,Other Communication Costs,28/08/2014,IJ00032263,1881.00,G T S Security,
South Holland District Council,http://statistics.data.gov.uk/id/local-authority/32UF,Housing Landlord Manager,Void Repairs,Materials and Consumables,28/08/2014,IJ00032294,5602.45,Jackson Buildbase,
South Holland District Council,http://statistics.data.gov.uk/id/local-authority/32UF,Housing Landlord Manager,Responsive Repairs,Materials and Consumables,28/08/2014,IJ00032294,2975.79,Jackson Buildbase,
South Holland District Council,http://statistics.data.gov.uk/id/local-authority/32UF,Housing Landlord Manager,Planned Schemes - Internal,Materials and Consumables,28/08/2014,IJ00032294,418.13,Jackson Buildbase,
South Holland District Council,http://statistics.data.gov.uk/id/local-authority/32UF,Housing Landlord Manager,Estate Management,Agency Staff,28/08/2014,IJ00032289,848.78,James Andrews Recruitment Solutions,
South Holland District Council,http://statistics.data.gov.uk/id/local-authority/32UF,Housing Landlord Manager,Estate Management,Agency Staff,28/08/2014,IJ00032290,848.78,James Andrews Recruitment Solutions,
South Holland District Council,http://statistics.data.gov.uk/id/local-authority/32UF,Building Control,Building Control Other Services,Buildings Maintenance - Programmed,28/08/2014,IJ00032259,585.20,Main Street Signs Ltd,
South Holland District Council,http://statistics.data.gov.uk/id/local-authority/32UF,Housing,Private Sector Housing,Grants and Contributions to Outside Bodies- No Service Recei,28/08/2014,IJ00032222,2050.00,M E Goodyear Property Maintenance,
South Holland District Council,http://statistics.data.gov.uk/id/local-authority/32UF,Corporate Improvement and Performance,Performance Management,Subscriptions to Organisations and Other Bodies,28/08/2014,IJ00032283,2095.00,North Kesteven District Council,
South Holland District Council,http://statistics.data.gov.uk/id/local-authority/32UF,Planning,Conservation - Heritage,Grants and Contributions to Outside Bodies- No Service Recei,28/08/2014,IJ00032209,693.00,Plann.It Limited,
South Holland District Council,http://statistics.data.gov.uk/id/local-authority/32UF,Planning,Local Plan,Professional & Contractors Fees,28/08/2014,IJ00032210,5928.26,South Kesteven District Council,
South Holland District Council,http://statistics.data.gov.uk/id/local-authority/32UF,Capital,HRA Capital,Works to Buildings (main Contractor),28/08/2014,IJ00032229,1845.00,Stuart Taplin,
South Holland District Council,http://statistics.data.gov.uk/id/local-authority/32UF,Environmental Services,Refuse Collection Service,Agency Staff,28/08/2014,IJ00032258,441.78,The Best Connection Group Ltd,
South Holland District Council,http://statistics.data.gov.uk/id/local-authority/32UF,Environmental Services,Recycling Service,Agency Staff,28/08/2014,IJ00032258,592.45,The Best Connection Group Ltd,
South Holland District Council,http://statistics.data.gov.uk/id/local-authority/32UF,Environmental Services,Street Cleaning Service,Agency Staff,28/08/2014,IJ00032258,145.80,The Best Connection Group Ltd,
South Holland District Council,http://statistics.data.gov.uk/id/local-authority/32UF,Environmental Services,Waste Supplementary Services,Agency Staff,28/08/2014,IJ00032258,76.39,The Best Connection Group Ltd,
South Holland District Council,http://statistics.data.gov.uk/id/local-authority/32UF,Environmental Services,Car Parking,Buildings Maintenance - Programmed,28/08/2014,IJ00032268,3037.00,Tyrrell Contractors Ltd,
South Holland District Council,http://statistics.data.gov.uk/id/local-authority/32UF,Environmental Services,Street Cleaning Service,Professional & Contractors Fees,28/08/2014,IJ00032212,550.00,West & East Anglia Asbestos Removals Ltd,
South Holland District Council,http://statistics.data.gov.uk/id/local-authority/32UF,Housing Landlord Manager,Void Repairs,Void Repairs,28/08/2014,IJ00032304,780.00,Spotless Cleaning,
South Holland District Council,http://statistics.data.gov.uk/id/local-authority/32UF,Housing Landlord Manager,Void Repairs,Void Repairs,28/08/2014,IJ00032305,1405.00,Spotless Cleaning,
South Holland District Council,http://statistics.data.gov.uk/id/local-authority/32UF,Environmental Services,Grounds Maintenance,Commercial Vehicle Lease,28/08/2014,IJ00032307,710.65,NORTHRIDGE FINANCE LTD,
South Holland District Council,http://statistics.data.gov.uk/id/local-authority/32UF,Housing,Private Sector Housing,Grants and Contributions to Outside Bodies- No Service Recei,28/08/2014,IJ00032272,3435.00,MPL HOME IMPROVEMENTS SERVICES LINCS LTD,
South Holland District Council,http://statistics.data.gov.uk/id/local-authority/32UF,Environmental Health,Control of Dogs,Commercial Vehicle Lease,28/08/2014,IJ00032288,3898.45,Automotive Leasing,
South Holland District Council,http://statistics.data.gov.uk/id/local-authority/32UF,Economic Development,Grants4Growth,Professional & Contractors Fees,28/08/2014,IJ00032234,8122.50,RESOURCE4GROWTH C I C LTD,
South Holland District Council,http://statistics.data.gov.uk/id/local-authority/32UF,Economic Development,Grants4Growth,Grants and Contributions to Outside Bodies- No Service Recei,28/08/2014,IJ00032218,4900.00,Hooton Engineering Ltd,
South Holland District Council,http://statistics.data.gov.uk/id/local-authority/32UF,Community Development,South Holland Centre and TIC,Furniture and Equipment,28/08/2014,IJ00032242,556.84,Dcinex UK Limited,
South Holland District Council,http://statistics.data.gov.uk/id/local-authority/32UF,Planning,Land Charges,Grants and Contributions to Outside Bodies- No Service Recei,29/08/2014,IJ00032315,22031.54,Tinklers Solicitors,
